bitfinex-derivatives/quotes_SOLF0:USTF0_20241016
["timestamp","ask_amount","ask_price","bid_price","bid_amount"]
[1729044925533,3.2109,155.73,155.69,4.2114]
[1729044926745,3.2112,155.71,155.69,1.0]
[1729044927536,3.2114,155.7,155.69,1.0]
[1729044928631,101.0,155.69,155.55,1.0]
[1729044928826,1.372,155.68,155.58,2.4698]
[1729044929027,5.3,155.67,155.64,3.2125]
[1729044929229,5.3,155.67,155.58,2.4698]
[1729044929634,19.18,155.67,155.58,2.4698]
[1729044929842,3.2124,155.66,155.61,3.2131]
[1729044930339,13.88,155.65,155.61,3.2131]
[1729044930549,17.0924,155.65,155.61,3.2131]
[1729044931637,17.0924,155.65,155.58,2.4698]
[1729044931638,19.18,155.65,155.58,2.4698]
[1729044931837,19.18,155.65,155.59,3.2136]
[1729044932936,19.18,155.65,155.58,2.4698]
[1729044933536,3.2129,155.63,155.59,3.2135]
[1729044934223,13.88,155.63,155.55,1.0]
[1729044935743,13.88,155.63,155.6,4.2134]
[1729044935932,3.2128,155.64,155.6,4.2134]
[1729044936329,13.88,155.61,155.55,1.0]
[1729044936537,120.25,155.63,155.43,2.7939]
[1729044936538,13.88,155.56,155.43,2.7939]
[1729044936837,17.0951,155.52,155.44,3.2166]
[1729044937042,3.2151,155.52,155.44,3.2166]
[1729044937338,3.2151,155.52,155.43,5.97670844]
[1729044937339,17.0951,155.52,155.43,2.7939]
[1729044937544,17.0951,155.52,155.44,3.2166]
[1729044937729,17.0951,155.52,155.43,16.6739]
[1729044938243,22.3951,155.52,155.46,3.2163]
[1729044939435,3.216,155.48,155.43,2.7939]
[1729044939639,13.88,155.48,155.43,2.7939]
[1729044940046,17.096,155.48,155.43,2.7939]
[1729044940243,13.88,155.48,155.43,2.7939]
[1729044941041,13.88,155.48,155.44,3.2167]
[1729044941243,5.56,155.49,155.44,3.2167]
[1729044941543,3.20788005,155.56,155.43,2.7939]
[1729044941740,13.88,155.51,155.43,2.7939]
[1729044942045,13.88,155.48,155.43,2.7939]
[1729044942374,13.88,155.48,155.44,3.2168]
[1729044942548,13.88,155.48,155.43,2.7939]
[1729044942945,3.216,155.48,155.43,1.4352]
[1729044943151,5.56,155.51,155.43,1.4352]
[1729044943344,13.88,155.45,155.42,1.0]
[1729044943940,13.88,155.45,155.42,4.217]
[1729044944145,13.88,155.44,155.42,4.217]
[1729044944646,13.88,155.44,155.42,1.0]
[1729044944844,13.88,155.44,155.43,3.217]
[1729044945043,8.7762,155.47,155.43,3.217]
[1729044945748,3.2162,155.47,155.43,3.217]
[1729044946151,19.44,155.48,155.44,3.2168]
[1729044946687,13.88,155.46,155.42,1.0]
[1729044947150,13.88,155.46,155.43,3.217]
[1729044947448,13.88,155.46,155.42,1.0]
[1729044947648,3.2168,155.45,155.42,1.0]
[1729044947847,13.88,155.46,155.42,1.0]
[1729044948243,3.2166,155.45,155.42,1.0]
[1729044948443,13.88,155.46,155.42,1.0]
[1729044948751,17.0964,155.46,155.42,1.0]
[1729044949643,3.2166,155.45,155.42,1.0]
[1729044950151,13.88,155.44,155.42,1.0]
[1729044950544,3.2163,155.47,155.43,3.2168]
[1729044950738,1.3869,155.48,155.42,1.0]
[1729044950940,6.9669,155.48,155.42,1.0]
[1729044951547,6.9669,155.48,155.45,3.2165]
[1729044951750,1.3869,155.48,155.45,3.2165]
[1729044951945,6.9669,155.48,155.45,3.2165]
[1729044952655,6.9669,155.48,155.42,1.0]
[1729044952856,13.88,155.46,155.42,1.0]
[1729044953655,13.88,155.43,155.42,1.0]
[1729044954556,3.2168,155.45,155.42,1.0]
[1729044954758,11.59921173,155.48,155.43,3.217]
[1729044954759,13.88,155.44,155.43,3.217]
[1729044954960,13.88,155.44,155.42,1.0]
[1729044955547,8.7964,155.46,155.42,1.0]
[1729044955856,13.88,155.45,155.42,4.2171]
[1729044956259,17.0966,155.45,155.42,4.2171]
[1729044957357,13.88,155.48,155.42,1.0]
[1729044957563,19.46,155.48,155.42,1.0]
[1729044958562,13.88,155.48,155.42,1.0]
[1729044960458,13.88,155.48,155.45,3.2165]
[1729044962257,13.88,155.46,155.43,3.2169]
[1729044963766,17.0964,155.46,155.43,3.2169]
[1729044964061,17.0964,155.46,155.42,4.217]
[1729044964973,13.88,155.44,155.42,1.0]
[1729044965567,3.2173,155.42,155.39,3.2178]
[1729044965773,13.88,155.41,155.39,3.2178]
[1729044965961,13.88,155.41,155.38,1.0]
[1729044966161,13.88,155.39,155.38,1.0]
[1729044966671,13.88,155.43,155.38,1.0]
[1729044966859,5.58,155.42,155.38,1.0]
[1729044967175,13.88,155.41,155.38,4.2179]
[1729044967471,13.88,155.41,155.38,1.0]
[1729044967970,17.0976,155.41,155.38,1.0]
[1729044968364,13.88,155.41,155.38,1.0]
[1729044968570,5.5,155.42,155.4,3.2175]
[1729044968766,13.88,155.43,155.4,3.2175]
[1729044968970,19.38,155.43,155.4,3.2175]
[1729044969870,3.2173,155.42,155.38,4.218]
[1729044970069,19.38,155.43,155.38,1.0]
[1729044970070,13.88,155.41,155.38,1.0]
[1729044970471,3.2176,155.4,155.38,1.0]
[1729044970866,13.88,155.41,155.38,1.0]
[1729044971172,4.52415903,155.47,155.38,1.0]
[1729044971173,5.5,155.45,155.38,1.0]
[1729044971382,19.38,155.45,155.38,1.0]
[1729044971572,19.38,155.45,155.39,3.2178]
[1729044972077,3.2173,155.42,155.38,4.218]
[1729044972277,13.88,155.43,155.38,1.0]
[1729044972582,3.2173,155.42,155.38,4.218]
[1729044972774,13.88,155.43,155.38,1.0]
[1729044973082,19.38,155.45,155.38,1.0]
[1729044973278,3.2169,155.44,155.4,3.2175]
[1729044973476,19.38,155.45,155.4,3.2175]
[1729044974371,3.2171,155.43,155.4,3.2175]
[1729044974673,13.88,155.45,155.38,1.0]
[1729044974873,5.5,155.44,155.41,3.2174]
[1729044975372,13.88,155.45,155.38,1.0]
[1729044975572,13.88,155.45,155.42,3.2171]
[1729044975573,19.38,155.45,155.42,3.2171]
[1729044976379,22.5966,155.45,155.42,3.2171]
[1729044977681,22.5966,155.45,155.38,1.0]
[1729044977682,3.2172,155.43,155.39,3.2177]
[1729044977986,3.2172,155.43,155.38,1.0]
[1729044978780,22.5968,155.45,155.41,3.2173]
[1729044978979,22.5968,155.45,155.38,1.0]
[1729044978980,5.5,155.45,155.38,1.0]
[1729044979580,8.7166,155.45,155.41,3.2172]
[1729044979884,5.5,155.46,155.38,14.88]
[1729044980188,5.5,155.46,155.39,1.3598]
[1729044980988,5.5,155.46,155.43,3.2168]
[1729044982292,3.2162,155.47,155.43,3.2168]
[1729044982493,8.7162,155.47,155.43,3.2168]
[1729044983298,19.38,155.47,155.41,3.2173]
[1729044983591,20.6987,155.47,155.38,1.0]
[1729044983792,3.2169,155.44,155.4,3.2175]
[1729044984092,13.88,155.45,155.4,3.2175]
[1729044984400,13.88,155.45,155.38,1.0]
[1729044984587,3.2172,155.42,155.38,1.0]
[1729044985287,19.38,155.43,155.38,1.0]
[1729044985491,13.88,155.41,155.38,1.0]
[1729044985796,3.2178,155.39,155.38,1.0]
[1729044986983,19.38,155.41,155.38,1.0]
[1729044987189,3.2177,155.4,155.38,1.0]
[1729044987391,19.38,155.41,155.38,1.0]
[1729044987590,3.2178,155.39,155.38,1.0]
[1729044988099,13.88,155.39,155.34,4.2188]
[1729044988288,13.88,155.39,155.34,1.0]
[1729044988495,3.2184,155.37,155.34,1.0]
[1729044989385,3.2186,155.35,155.34,1.0]
[1729044990495,17.0986,155.35,155.34,1.0]
[1729044990797,17.0988,155.35,155.29,1.0]
[1729044990995,3.2188,155.35,155.29,1.0]
[1729044991207,3.2188,155.35,155.31,3.2193]
[1729044991697,19.38,155.37,155.29,1.0]
[1729044991698,3.219,155.34,155.3,3.2196]
[1729044992595,19.38,155.37,155.29,1.0]
[1729044993101,1.3791,155.36,155.29,1.0]
[1729044993294,3.2192,155.33,155.29,4.2197]
[1729044993802,1.3791,155.36,155.29,1.0]
[1729044994000,5.5,155.35,155.29,1.0]
[1729044994898,3.2191,155.33,155.29,4.2198]
[1729044995093,3.2191,155.33,155.29,1.0]
[1729044995700,3.2191,155.33,155.29,4.2198]
[1729044995888,5.5,155.35,155.29,1.0]
[1729044996091,3.2194,155.32,155.29,1.0]
[1729044996997,3.2191,155.33,155.29,1.0]
[1729044997299,13.88,155.34,155.29,1.0]
[1729044998204,1.3791,155.36,155.29,14.88]
[1729044998607,1.3791,155.36,155.33,3.2189]
[1729044999303,5.46,155.38,155.34,3.2187]
[1729044999604,5.46,155.38,155.29,14.88]
[1729044999801,5.46,155.38,155.35,3.2185]
[1729045000398,1.3908,155.4,155.37,3.2181]
[1729045000600,5.46,155.44,155.36,13.88]
[1729045000994,8.6768,155.44,155.39,3.2176]
[1729045001400,8.1771,155.47,155.36,13.88]
[1729045001615,3.2164,155.46,155.38,13.88]
[1729045002506,10.0671,155.47,155.41,3.2172]
[1729045002700,6.8508,155.47,155.38,13.88]
[1729045003400,6.8508,155.47,155.39,3.2178]
[1729045003401,3.2168,155.44,155.39,3.2178]
[1729045004111,3.2172,155.43,155.38,3.218]
[1729045004299,3.2172,155.43,155.35,5.46]
[1729045004300,5.46,155.43,155.35,5.46]
[1729045004505,13.88,155.36,155.25,1.0]
[1729045004696,13.88,155.33,155.26,3.2203]
[1729045004901,22.618736,155.33,155.25,1.0]
[1729045005103,13.88,155.31,155.25,1.0]
[1729045005409,3.2203,155.27,155.25,1.0]
[1729045006707,17.1001,155.28,155.25,1.0]
[1729045007910,3.2201,155.28,155.25,1.0]
[1729045008809,3.2205,155.27,155.25,1.0]
[1729045009113,5.46,155.29,155.25,1.0]
[1729045009304,8.6801,155.29,155.25,1.0]
[1729045011307,5.46,155.29,155.25,1.0]
[1729045011508,3.2203,155.28,155.25,1.0]
[1729045011714,5.46,155.29,155.25,1.0]
[1729045012709,3.2202,155.28,155.25,1.0]
[1729045013116,5.46,155.29,155.25,1.0]
[1729045013409,3.2201,155.28,155.25,1.0]
[1729045013717,5.46,155.29,155.25,1.0]
[1729045014117,8.68,155.29,155.25,4.2206]
[1729045015717,8.68,155.29,155.26,3.2205]
[1729045016015,8.68,155.29,155.25,1.0]
[1729045018317,3.2201,155.28,155.25,1.0]
[1729045020218,5.46,155.29,155.25,1.0]
[1729045020520,3.2199,155.29,155.25,4.2206]
[1729045020738,1.4399,155.34,155.25,1.0]
[1729045021023,3.219,155.34,155.26,2.8466]
[1729045021620,3.2191,155.33,155.29,3.2197]
[1729045021827,1.4004,155.35,155.26,2.8466]
[1729045022817,3.2189,155.34,155.26,2.8466]
[1729045023017,5.46,155.36,155.26,6.03260248]
[1729045023218,1.3848,155.39,155.26,2.8466]
[1729045023417,8.6782,155.38,155.33,3.2189]
[1729045023738,5.46,155.38,155.27,6.806]
[1729045023957,3.2183,155.37,155.27,6.806]
[1729045024513,8.6781,155.38,155.27,6.806]
[1729045024715,59.78874008,155.64,155.27,6.806]
[1729045024716,229.0,155.5,155.27,29.076]
[1729045025022,1.3596,155.43,155.39,3.2178]
[1729045025225,5.46,155.45,155.35,5.46]
[1729045025522,5.46,155.45,155.36,1.4419]
[1729045026526,3.2168,155.44,155.39,3.2176]
[1729045027222,22.27,155.44,155.36,1.4419]
[1729045027415,5.46,155.45,155.34,1.4394]
[1729045027416,22.27,155.42,155.34,1.4394]
[1729045027923,13.92,155.39,155.34,1.4394]
[1729045028318,13.92,155.39,155.31,1.3103]
[1729045028514,13.92,155.39,155.31,6.7903]
[1729045028920,3.2184,155.37,155.32,3.2192]
[1729045029325,13.92,155.37,155.32,3.2192]
[1729045029519,13.92,155.37,155.31,6.7903]
[1729045029722,5.48,155.41,155.31,20.7103]
[1729045029926,5.48,155.41,155.31,29.0503]
[1729045030226,8.6976,155.41,155.36,3.2183]
[1729045030527,5.48,155.41,155.36,3.2183]
[1729045031034,3.2178,155.4,155.36,3.2183]
[1729045033725,8.6975,155.41,155.37,3.2182]
[1729045034028,3.2175,155.41,155.37,3.2182]
[1729045034231,3.218,155.39,155.34,3.2187]
[1729045034529,22.26,155.39,155.31,6.7903]
[1729045034732,3.2183,155.37,155.33,3.2189]
[1729045035633,3.218,155.38,155.34,3.2187]
[1729045035863,6.9022,155.4,155.31,6.7903]
[1729045036430,3.2182,155.38,155.31,6.7903]
[1729045037129,3.2182,155.38,155.34,3.2187]
[1729045038633,3.2178,155.39,155.35,3.2186]
[1729045039354,6.9022,155.4,155.31,6.7903]
[1729045039355,1.4222,155.4,155.31,6.7903]
[1729045039523,5.48,155.43,155.31,29.0503]
[1729045040529,1.4052,155.45,155.34,22.26]
[1729045040738,22.26,155.48,155.36,22.26]
[1729045041125,5.48,155.49,155.36,22.26]
[1729045041438,26.3719,155.51,155.46,3.2163]
[1729045041439,3.2156,155.5,155.46,3.2163]
[1729045041937,3.2156,155.5,155.45,3.2166]
[1729045042237,3.2158,155.49,155.45,3.2166]
[1729045044233,3.2156,155.5,155.46,3.2163]
[1729045044438,1.0,155.52,155.46,3.2163]
[1729045044637,1.0,155.52,155.44,1.3585]
[1729045044941,3.2157,155.5,155.45,3.2164]
[1729045045538,1.0,155.52,155.44,1.3585]
[1729045045837,22.26,155.5,155.43,5.46]
[1729045046228,3.2165,155.46,155.43,5.46]
[1729045046536,22.26,155.48,155.42,5.46]
[1729045046735,3.2164,155.46,155.42,5.46]
[1729045047834,22.26,155.48,155.4,1.33]
[1729045048027,3.2169,155.44,155.4,6.79]
[1729045048537,3.217,155.43,155.4,6.79]
[1729045048934,22.26,155.45,155.4,1.33]
[1729045049239,22.26,155.45,155.37,1.3806]
[1729045049430,22.26,155.43,155.38,5.46]
[1729045049944,3.2175,155.41,155.38,5.46]
[1729045050240,22.26,155.43,155.38,5.46]
[1729045050660,22.26,155.43,155.37,3.2182]
[1729045050980,3.2178,155.39,155.36,5.46]
[1729045051141,22.26,155.43,155.36,5.46]
[1729045051639,3.2174,155.41,155.36,8.6783]
[1729045051841,22.26,155.43,155.36,8.6783]
[1729045052035,22.26,155.43,155.34,1.391]
[1729045052241,22.26,155.4,155.34,6.851]
[1729045053039,22.26,155.4,155.26,25.50012811]
[1729045053340,22.26,155.38,155.32,5.46]
[1729045053846,22.26,155.38,155.32,8.6792]
[1729045054738,3.2186,155.36,155.32,8.6792]
[1729045055135,22.26,155.38,155.32,5.46]
[1729045055334,3.2179,155.39,155.35,3.2185]
[1729045055534,22.26,155.43,155.32,27.72]
[1729045056031,3.2174,155.41,155.37,3.2181]
[1729045056543,3.2173,155.42,155.38,3.2178]
[1729045056741,22.26,155.43,155.36,5.46]
[1729045057244,3.2179,155.39,155.36,5.46]
[1729045057437,22.26,155.43,155.36,5.46]
[1729045058146,3.2177,155.4,155.36,3.2183]
[1729045058333,22.26,155.4,155.29,22.26]
[1729045058543,22.26,155.4,155.3,5.36]
[1729045058744,3.2183,155.37,155.33,3.2191]
[1729045059346,22.26,155.4,155.33,3.2191]
[1729045060045,3.2182,155.38,155.34,3.2188]
[1729045060245,1.3856,155.39,155.3,5.36]
[1729045060437,22.26,155.38,155.3,5.36]
[1729045060641,3.2187,155.35,155.32,3.2193]
[1729045061253,3.2191,155.33,155.28,1.4158]
[1729045061448,23.6097,155.38,155.28,5.36]
[1729045062145,23.6097,155.38,155.29,3.2198]
[1729045062537,3.2191,155.33,155.29,3.2198]
[1729045063047,5.36,155.36,155.28,5.36]
[1729045063048,22.26,155.35,155.28,5.36]
[1729045063548,3.2195,155.31,155.28,5.36]
[1729045063944,22.26,155.35,155.28,5.36]
[1729045064140,3.2193,155.32,155.28,5.36]
[1729045065652,3.2192,155.33,155.29,3.2199]
[1729045065954,5.36,155.36,155.31,3.2193]
[1729045066145,5.36,155.36,155.28,5.36]
[1729045066146,3.2187,155.35,155.28,5.36]
[1729045066951,3.2189,155.34,155.3,3.2195]
[1729045067152,3.2189,155.34,155.28,5.36]
[1729045068042,5.36,155.36,155.31,3.2195]
[1729045068247,3.2188,155.35,155.31,3.2195]
[1729045068452,28.9697,155.38,155.28,5.36]
[1729045069045,3.2186,155.36,155.32,3.2191]
[1729045069349,28.9697,155.38,155.32,3.2191]
[1729045070659,3.2187,155.35,155.32,3.2191]
[1729045071746,28.9697,155.38,155.28,5.36]
[1729045071955,13.92,155.35,155.28,5.36]
[1729045072146,6.7097,155.38,155.26,5.36]
[1729045072147,13.92,155.33,155.26,5.36]
[1729045072347,3.2198,155.3,155.27,3.2202]
[1729045073653,3.2196,155.31,155.27,3.2202]
[1729045073949,3.2196,155.31,155.26,5.36]
[1729045074156,1.3179,155.32,155.26,5.36]
[1729045075353,3.2195,155.31,155.28,3.22]
[1729045075553,1.3179,155.32,155.26,5.36]
[1729045076553,4.5373,155.32,155.29,3.2198]
[1729045077253,3.2197,155.3,155.27,3.2202]
[1729045080261,3.2198,155.3,155.27,3.2202]
[1729045080460,1.3179,155.32,155.26,5.36]
[1729045080654,1.3179,155.32,155.29,3.2199]
[1729045081351,1.3179,155.32,155.25,1.0]
[1729045081352,1.3179,155.32,155.27,3.2201]
[1729045081660,13.92,155.31,155.25,1.0]
[1729045081852,13.92,155.31,155.25,4.2206]
[1729045082052,17.09399513,155.31,155.25,4.2206]
[1729045082552,13.92,155.31,155.25,1.0]
[1729045082758,3.2196,155.31,155.27,3.2201]
[1729045083060,5.9385857,155.32,155.25,1.0]
[1729045083255,3.2198,155.3,155.26,3.2204]
[1729045083449,13.92,155.31,155.25,1.0]
[1729045083644,13.92,155.29,155.25,1.0]
[1729045083859,3.2205,155.26,155.25,1.0]
[1729045085150,5.38,155.3,155.25,1.0]
[1729045085151,13.92,155.29,155.25,1.0]
[1729045085358,3.2201,155.28,155.25,1.0]
[1729045086360,8.5999,155.3,155.25,1.0]
[1729045086756,3.22,155.29,155.25,4.2207]
[1729045087854,3.2203,155.27,155.25,1.0]
[1729045093360,3.2205,155.26,155.25,1.0]
[1729045094763,17.1405,155.27,155.25,1.0]
[1729045095355,15.3031,155.29,155.25,1.0]
[1729045095569,5.9385857,155.32,155.27,3.2203]
[1729045095570,3.2198,155.3,155.27,3.2203]
[1729045095867,3.2198,155.3,155.25,1.0]
[1729045095868,5.32,155.31,155.25,1.0]
[1729045096060,13.92,155.3,155.25,1.0]
[1729045096768,3.2203,155.28,155.25,1.0]
[1729045097761,3.2199,155.29,155.26,3.2204]
[1729045097964,5.9385857,155.32,155.25,1.0]
[1729045097965,19.8585857,155.32,155.25,1.0]
[1729045098165,5.32,155.31,155.25,1.0]
[1729045098766,3.2199,155.29,155.26,3.2205]
[1729045100372,3.2199,155.29,155.25,1.0]
[1729045100373,2.7298,155.32,155.25,1.0]
[1729045101163,5.9491,155.32,155.29,3.2198]
[1729045101559,2.7298,155.32,155.25,1.0]
[1729045101770,3.2197,155.3,155.27,3.2202]
[1729045101971,2.7298,155.32,155.27,3.2202]
[1729045102979,3.2195,155.31,155.28,3.2201]
[1729045103370,1.3179,155.32,155.28,3.2201]
[1729045103603,8.5388,155.35,155.31,3.2195]
[1729045103875,5.32,155.35,155.31,3.2195]
[1729045104473,3.219,155.34,155.31,3.2195]
[1729045104674,13.92,155.36,155.27,5.32]
[1729045104977,13.92,155.36,155.32,3.2191]
[1729045105274,17.1386,155.36,155.32,3.2191]
[1729045105674,17.1386,155.36,155.27,5.32]
[1729045105878,16.7784,155.39,155.28,13.92]
[1729045106074,3.2182,155.38,155.28,13.92]
[1729045106477,16.7784,155.39,155.28,13.92]
[1729045106775,16.7784,155.39,155.32,13.92]
[1729045106776,1.4246,155.39,155.32,13.92]
[1729045106976,1.4246,155.39,155.32,19.24]
[1729045107173,18.56113957,155.39,155.32,5.32]
[1729045107378,13.92,155.37,155.32,5.32]
[1729045107567,3.2187,155.35,155.32,3.2191]
[1729045107772,3.2187,155.35,155.29,5.32]
[1729045108273,3.2187,155.35,155.31,3.2193]
[1729045109280,13.92,155.37,155.32,3.2192]
[1729045109575,13.92,155.37,155.29,5.32]
[1729045109877,3.2189,155.34,155.31,3.2195]
[1729045110083,13.92,155.37,155.29,5.32]
[1729045110683,3.2188,155.35,155.31,3.2193]
[1729045111680,5.32,155.38,155.29,5.32]
[1729045111869,8.5382,155.38,155.29,5.32]
[1729045112182,5.32,155.38,155.29,5.32]
[1729045112877,5.32,155.38,155.29,19.24]
[1729045114476,3.2185,155.36,155.33,3.219]
[1729045118984,5.32,155.4,155.31,13.92]
[1729045119290,6.6375,155.43,155.35,13.92]
[1729045119778,3.2173,155.42,155.39,3.2178]
[1729045119979,6.6375,155.43,155.39,3.2178]
[1729045120377,9.8546,155.43,155.39,3.2178]
[1729045121481,3.2172,155.42,155.39,3.2178]
[1729045122185,20.5575,155.43,155.37,3.218]
[1729045122885,3.2176,155.41,155.37,3.218]
[1729045124487,20.5575,155.43,155.37,13.92]
[1729045124488,6.6375,155.43,155.37,13.92]
[1729045124888,6.6375,155.43,155.4,3.2175]
[1729045126383,9.8545,155.43,155.4,3.2175]
[1729045126783,9.8545,155.43,155.39,3.2178]
[1729045127687,69.52,155.46,155.35,13.92]
[1729045127884,5.32,155.45,155.36,2.6937]
[1729045129396,3.217,155.43,155.4,3.2176]
[1729045130684,5.32,155.45,155.36,2.6937]
[1729045130891,3.2168,155.44,155.41,3.2173]
[1729045131187,5.32,155.46,155.37,13.92]
[1729045131586,3.2167,155.45,155.37,13.92]
[1729045132689,3.2167,155.45,155.36,2.6937]
[1729045132690,3.217,155.43,155.4,3.2175]
[1729045132891,5.32,155.46,155.4,3.2175]
[1729045133289,5.32,155.46,155.42,3.2171]
[1729045133889,8.5365,155.46,155.42,3.2171]
[1729045134089,5.32,155.46,155.42,3.2171]
[1729045134993,3.2167,155.45,155.42,3.2171]
[1729045137385,5.32,155.46,155.36,2.6937]
[1729045137592,13.92,155.42,155.36,2.6937]
[1729045138696,3.2175,155.41,155.38,3.2179]
[1729045139101,13.92,155.42,155.29,13.92]
[1729045139102,13.92,155.4,155.29,13.92]
[1729045139292,13.92,155.38,155.33,5.32]
[1729045139694,17.1382,155.38,155.34,3.2187]
[1729045139897,17.1382,155.38,155.33,5.32]
[1729045140294,17.1382,155.38,155.35,3.2185]
[1729045141302,17.1382,155.38,155.33,5.32]
[1729045141303,3.2184,155.37,155.33,3.2189]
[1729045142897,17.1376,155.4,155.37,3.2182]
[1729045143090,5.32,155.42,155.31,13.92]
[1729045143091,19.24,155.42,155.31,13.92]
[1729045143289,3.2175,155.41,155.35,3.2186]
[1729045143490,19.24,155.42,155.32,1.3017]
[1729045144094,3.218,155.39,155.35,3.2185]
[1729045145997,13.92,155.38,155.32,3.2193]
[1729045146197,19.24,155.38,155.32,3.2193]
[1729045146406,3.2186,155.36,155.32,3.2193]
[1729045147307,3.2186,155.36,155.33,3.219]
[1729045149502,3.2184,155.37,155.3,1.3368]
[1729045149710,5.32,155.41,155.32,13.92]
[1729045149895,5.32,155.41,155.33,5.32]
[1729045150092,5.32,155.41,155.34,13.92]
[1729045150292,5.32,155.44,155.34,15.2798]
[1729045150507,5.32,155.44,155.34,16.6516]
[1729045150706,5.32,155.45,155.37,13.92]
[1729045150908,5.32,155.47,155.38,1.4371]
[1729045151293,3.217,155.44,155.39,3.2177]
[1729045151507,13.92,155.45,155.39,3.2177]
[1729045152099,5.32,155.46,155.42,3.2171]
[1729045152308,5.32,155.49,155.39,13.92]
[1729045152901,5.32,155.49,155.38,1.4371]
[1729045152902,13.92,155.47,155.38,1.4371]
[1729045153096,3.2167,155.45,155.39,5.32]
[1729045153804,3.2167,155.45,155.42,3.2172]
[1729045154995,3.2171,155.43,155.39,3.2178]
[1729045155194,13.92,155.43,155.36,5.32]
[1729045155598,3.2177,155.4,155.37,3.2181]
[1729045155793,13.92,155.41,155.34,1.3598]
[1729045156007,13.92,155.41,155.35,5.32]
[1729045156210,3.218,155.38,155.35,3.2185]
[1729045156512,13.92,155.39,155.34,1.3598]
[1729045156704,3.17517543,155.38,155.33,5.32]
[1729045157216,3.17517543,155.38,155.3,5.32]
[1729045158008,3.2186,155.36,155.29,1.3709]
[1729045158207,3.2186,155.36,155.29,6.6909]
[1729045158703,3.2188,155.35,155.31,3.2195]
[1729045162105,20.6262,155.37,155.29,1.3709]
[1729045162106,20.6262,155.37,155.33,3.219]
[1729045162306,229.0,155.5,155.3,13.92]
[1729045162307,5.32,155.39,155.3,13.92]
[1729045162512,19.24,155.41,155.3,15.3385]
[1729045162807,1.4159,155.43,155.33,13.92]
[1729045163006,6.7359,155.43,155.34,1.3457]
[1729045164505,3.2174,155.41,155.34,1.3457]
[1729045165008,3.2174,155.41,155.37,3.2181]
[1729045168116,3.2174,155.41,155.38,3.218]
[1729045170014,3.21692932,155.4,155.31,13.92]
[1729045170213,3.218,155.38,155.34,3.2187]
[1729045172332,13.92,155.37,155.29,1.3709]
[1729045172613,13.92,155.35,155.26,6.6358]
[1729045172817,19.24,155.35,155.26,6.6358]
[1729045173320,3.2191,155.33,155.29,3.2197]
[1729045174001,22.4588,155.35,155.26,6.6358]